lending/lending_fUSD_20251121
["ID","MTS","AMOUNT","RATE_DAILY","PERIOD"]
[394554161,1763699994408,500.0,0.00032876,120]
[394554162,1763699994690,500.0,0.00032876,120]
[394554163,1763699995083,500.0,0.00032876,120]
[394554164,1763699995996,500.0,0.00032876,120]
[394554165,1763699996135,500.0,0.00032876,120]
[394554166,1763699996317,500.0,0.00032876,120]
[394554167,1763699996555,500.0,0.00032876,120]
[394554168,1763699996799,500.0,0.00032876,120]
[394554169,1763699997065,500.0,0.00032876,120]
[394554170,1763699997432,500.0,0.00032876,120]
[394554171,1763699997666,500.0,0.00032876,120]
[394554172,1763699997904,500.0,0.00032876,120]
[394554173,1763699998144,500.0,0.00032876,120]
[394554174,1763700007727,348.0,0.00032275,120]
[394554175,1763700009313,348.0,0.00033889,120]
[394554176,1763700010795,348.0,0.00035583,120]
[394554179,1763700039859,641.60117917,0.00035616,120]
[394554180,1763700041016,621.08005896,0.00035616,120]
[394554181,1763700043568,150.5,0.0002615,120]
[394554182,1763700044030,150.5,0.0002614,120]
[394554183,1763700044467,150.5,0.0002613,120]
[394554184,1763700045125,150.5,0.0002615,120]
[394554185,1763700045541,152.93,0.0002614,120]
[394554186,1763700057879,166.66,0.00015307,2]
[394554187,1763700058262,166.66,0.00015629,2]
[394554188,1763700058439,166.66,0.00015952,2]
[394554189,1763700085047,5888.0,0.00035616,120]
[394554190,1763700087865,5062.34266283,0.00035616,120]
[394554191,1763700117478,314.06822199,0.00032876,120]
[394554193,1763700157440,1179.91276206,0.0003561,120]
[394554194,1763700176596,1113.0,0.00035616,120]
[394554195,1763700194664,-300.0,0.000171,6]
[394554196,1763700194686,-200.0,0.000172,6]
[394554197,1763700209608,725.0,0.0003561,120]
[394554198,1763700210780,770.0,0.0003561,120]
[394554199,1763700211238,506.0,0.0003561,120]
[394554200,1763700240031,1000.0,0.00035616,120]
[394554212,1763700258131,1000.0,0.00015753,2]
[394554213,1763700275176,408.0,0.0003561,120]
[394554214,1763700275486,1728.0,0.0003561,120]
[394554215,1763700280529,1004.95203468,0.00035616,120]
[394554216,1763700283031,300.0,0.00032877,120]
[394554217,1763700283343,331.62272529,0.00035616,120]
[394554218,1763700303169,1009.22,0.00035616,120]
[394554219,1763700306563,942.0,0.00033529,120]
[394554220,1763700307854,942.0,0.00035205,120]
[394554223,1763700329406,261.0,0.0003561,120]
[394554225,1763700330195,948.0,0.0003561,120]
[394554231,1763700332222,333.0,0.0003561,120]
[394554234,1763700332997,185.0,0.0003561,120]
[394554236,1763700333828,160.0,0.0003561,120]
[394554237,1763700334596,481.0,0.0003561,120]
[394554238,1763700335388,308.0,0.0003561,120]
[394554239,1763700336199,383.0,0.0003561,120]
[394554240,1763700336970,405.0,0.0003561,120]
[394554241,1763700337751,319.0,0.0003561,120]
[394554242,1763700338541,240.0,0.0003561,120]
[394554243,1763700340097,286.0,0.0003561,120]
[394554244,1763700340384,198.0,0.0003561,120]
[394554245,1763700340921,236.0,0.0003561,120]
[394554246,1763700341717,487.0,0.0003561,120]
[394554247,1763700342500,227.0,0.0003561,120]
[394554248,1763700343283,315.0,0.0003561,120]
[394554249,1763700344095,690.28058005,0.00027397,120]
[394554250,1763700361990,300.0,0.00016199,2]
[394554251,1763700370165,451.04544665,0.00031616,120]
[394554252,1763700372559,150.0,0.00015671,2]
[394554253,1763700374500,1759.35059358,0.00032876,120]
[394554255,1763700394065,837.05814429,0.0003561,120]
[394554257,1763700395459,274.0,0.0003561,120]
[394554258,1763700396246,268.0,0.0003561,120]
[394554259,1763700397042,358.0,0.0003561,120]
[394554260,1763700397855,494.0,0.0003561,120]
[394554261,1763700398652,160.0,0.0003561,120]
[394554262,1763700399445,185.0,0.0003561,120]
[394554263,1763700400717,188.0,0.0003561,120]
[394554264,1763700401519,279.0,0.0003561,120]
[394554265,1763700402301,326.0,0.0003561,120]
[394554266,1763700402583,1988.0,0.00035439,120]
[394554267,1763700403585,421.0,0.0003561,120]
[394554269,1763700405009,285.0,0.0003561,120]
[394554270,1763700405364,164.0,0.0003561,120]
[394554278,1763700421753,300.0,0.00016199,2]
[394554292,1763700448708,1788.89813785,0.0003561,120]
[394554293,1763700449645,309.0,0.0003561,120]
[394554294,1763700450517,336.0,0.0003561,120]
[394554295,1763700451280,340.0,0.0003561,120]
[394554296,1763700452063,248.0,0.0003561,120]
[394554297,1763700452847,375.0,0.0003561,120]
[394554298,1763700453983,914.91,0.00015633,2]
[394554299,1763700467128,1200.0,0.00016199,2]
[394554301,1763700474523,451.04544665,0.00031616,120]
[394554303,1763700482122,300.0,0.00016199,2]
[394554306,1763700482917,-150.0,0.000162,2]
[394554307,1763700482943,-150.0,0.000162,2]
[394554308,1763700482963,-38.64,0.000162,2]
[394554311,1763700485578,180.0,0.0003561,120]
[394554312,1763700487925,180.0,0.0003561,120]
[394554314,1763700490215,180.0,0.0003561,120]
[394554319,1763700586391,551.5441357,0.00015537,2]
[394554320,1763700586413,44.3558643,0.00015537,2]
[394554329,1763700632618,-138.55318739,0.000162,2]
[394554330,1763700632627,-150.0,0.000162,2]
[394554331,1763700632637,-150.0,0.000162,2]
[394554332,1763700632646,-150.0,0.000162,2]
[394554333,1763700632656,-190.6592067,0.000162,2]
[394554334,1763700632666,-201.56400329,0.000162,2]
[394554335,1763700632675,-180.42895222,0.000162,2]
[394554336,1763700632684,-250.0,0.00016218,2]
[394554337,1763700632693,-300.0,0.00016237,2]
[394554339,1763700632703,-300.73037782,0.00016237,2]
[394554341,1763700632712,-250.0,0.0001627,2]
[394554343,1763700632721,-166.66,0.00016274,2]
[394554345,1763700632731,-1200.0,0.00016285,2]
[394554347,1763700632740,-952.2007,0.00016286,2]
[394554349,1763700632750,-2500.0,0.00016286,2]
[394554350,1763700632759,-300.0,0.000163,2]
[394554351,1763700632768,-300.0,0.00016372,2]
[394554352,1763700632778,-500.0,0.00016373,2]
[394554353,1763700632787,-500.0,0.00016373,2]
[394554354,1763700632797,-288.59436364,0.00016383,2]
[394554355,1763700632806,-452.0,0.00016384,2]
[394554356,1763700632816,-1285.06658655,0.00016385,2]
[394554357,1763700632902,-364.9227445,0.00016385,2]
[394554358,1763700632913,-257.229,0.00016385,2]
[394554359,1763700632958,-626.31575954,0.00016385,2]
[394554360,1763700637607,-499.64685611,0.00016385,2]
[394554361,1763700637619,-500.0,0.00016385,2]
[394554362,1763700637628,-140.74866219,0.00016385,2]
[394554363,1763700637728,-11.44321976,0.00016385,2]
[394554366,1763700639635,-430.68986262,0.00016385,2]
[394554367,1763700639644,-251.50686466,0.00016385,2]
[394554368,1763700639758,-248.49313534,0.00016385,2]
[394554369,1763700639768,-500.0,0.00016385,2]
[394554370,1763700639777,-500.0,0.00016385,2]
[394554371,1763700639786,-500.0,0.00016385,2]
[394554372,1763700639795,-500.0,0.00016385,2]
[394554373,1763700639805,-928.47,0.00016385,2]
[394554374,1763700639815,-150.99,0.00016385,2]
[394554375,1763700639825,-2686.48,0.00016385,2]
[394554376,1763700639835,-299.99,0.00016385,4]
[394554377,1763700639845,-866.27,0.00016385,2]
[394554378,1763700639855,-500.0,0.00016438,2]
[394554379,1763700639865,-7991.45,0.00016438,2]
[394554380,1763700639874,-29995.69683245,0.00016468,2]
[394554381,1763700639883,-425.19853295,0.00016485,2]
[394554382,1763700639893,-500.0,0.00016485,2]
[394554383,1763700639902,-500.0,0.00016485,2]
[394554384,1763700639912,-500.0,0.00016485,2]
[394554385,1763700639921,-270.15482505,0.00016485,2]
[394554386,1763700639930,-500.0,0.00016485,2]
[394554387,1763700639939,-515.69519467,0.00016485,2]
[394554388,1763700639949,-500.0,0.00016485,2]
[394554389,1763700639958,-516.48518836,0.00016485,2]
[394554390,1763700639967,-500.0,0.00016485,2]
[394554391,1763700639976,-500.0,0.00016485,2]
[394554392,1763700639986,-500.0,0.00016485,2]
[394554393,1763700639995,-500.0,0.00016485,2]
[394554394,1763700640004,-680.0,0.0001653,2]
[394554395,1763700640014,-1432.0,0.0001656,2]
[394554396,1763700640023,-1085.0,0.00016593,2]
[394554397,1763700640032,-166.66,0.00016596,2]
[394554398,1763700640042,-2420.76,0.000166,2]
[394554399,1763700640051,-1206.13,0.000166,2]
[394554400,1763700640061,-2419.91,0.000166,2]
[394554401,1763700640070,-220.0,0.00016606,2]
[394554402,1763700640079,-487.0,0.00016639,2]
[394554403,1763700640089,-1254.0,0.00016643,2]
[394554404,1763700640098,-928.47,0.00016659,2]
[394554405,1763700640107,-172.0,0.00016672,2]
[394554406,1763700640117,-377.0,0.00016676,2]
[394554407,1763700640126,-701.05,0.00016685,2]
[394554408,1763700640135,-1391.02,0.00016685,2]
[394554409,1763700640145,-701.05,0.00016685,2]
[394554412,1763700640154,-701.05,0.000167,2]
[394554413,1763700640163,-701.05,0.000167,2]
[394554414,1763700640172,-701.05,0.000167,2]
[394554415,1763700640182,-276.0,0.00016706,2]
[394554416,1763700640191,-695.0,0.0001671,2]
[394554417,1763700640201,-1084.02155585,0.00016728,2]
[394554418,1763700640210,-422.0,0.00016739,2]
[394554419,1763700640219,-1128.0,0.00016743,2]
[394554420,1763700640229,-296.0,0.00016772,2]
[394554421,1763700640238,-273.0,0.00016805,2]
[394554422,1763700640247,-305.0,0.00016838,2]
[394554423,1763700640256,-206.0,0.00016871,2]
[394554424,1763700640265,-735.13817,0.0001689,2]
[394554425,1763700640275,-1397.63537134,0.00016893,2]
[394554426,1763700640286,-300.0,0.000169,6]
[394554427,1763700640299,-478.75,0.000169,2]
[394554428,1763700640309,-161.57027822,0.000169,2]
[394554429,1763700640318,-3734.23920252,0.000169,2]
[394554430,1763700640327,-399.0,0.00016904,2]
[394554431,1763700640337,-166.66,0.00016918,2]
[394554432,1763700640347,-1000.0,0.00016921,2]
[394554433,1763700640356,-928.47,0.00016933,2]
[394554434,1763700640369,-230.0,0.00016938,2]
[394554435,1763700640379,-306.6,0.00016939,2]
[394554436,1763700640388,-151.0,0.0001694,2]
[394554437,1763700640397,-735.13818,0.0001694,2]
[394554438,1763700640407,-175.0,0.00016971,2]
[394554439,1763700640416,-548.86992162,0.00016973,2]
[394554440,1763700640426,-514.90121309,0.00016973,2]
[394554441,1763700640437,-469.88770263,0.00016973,2]
[394554442,1763700640447,-500.0,0.00016973,2]
[394554443,1763700640456,-413.2167407,0.00016973,2]
[394554444,1763700640465,-500.0,0.00016973,2]
[394554445,1763700640477,-500.0,0.00016973,2]
[394554446,1763700640486,-500.0,0.00016973,2]
[394554447,1763700640496,-500.0,0.00016983,2]
[394554448,1763700640507,-208.97,0.00016995,2]
[394554449,1763700640516,-16192.9650845,0.00016997,2]
[394554450,1763700640525,-174.80839461,0.00016999,2]
[394554451,1763700640535,-167.47287897,0.00016999,2]
[394554452,1763700640544,-228.75419922,0.00016999,2]
[394554453,1763700640560,-500.0,0.00016999,2]
[394554454,1763700640569,-500.0,0.00016999,2]
[394554455,1763700640579,-500.0,0.00016999,2]
[394554456,1763700640588,-500.0,0.00016999,2]
[394554457,1763700640598,-500.0,0.00016999,2]
[394554458,1763700640606,-500.0,0.00016999,2]
[394554459,1763700640616,-500.0,0.00016999,2]
[394554460,1763700640625,-500.0,0.00016999,2]
[394554461,1763700640635,-500.0,0.00016999,2]
[394554462,1763700640644,-500.0,0.00016999,2]
[394554463,1763700640653,-500.0,0.00016999,2]
[394554464,1763700640663,-500.0,0.00016999,2]
[394554465,1763700640672,-500.0,0.00016999,2]
[394554466,1763700640681,-500.0,0.00016999,2]
[394554467,1763700640690,-500.0,0.00016999,2]
[394554468,1763700640699,-500.0,0.00016999,2]
[394554469,1763700640708,-500.0,0.00016999,2]
[394554470,1763700640718,-500.0,0.00016999,2]
[394554471,1763700640727,-500.0,0.00016999,2]
[394554472,1763700640736,-606.30286071,0.00016999,2]
[394554473,1763700640745,-500.0,0.00016999,2]
[394554474,1763700640754,-500.0,0.00016999,2]
[394554475,1763700640763,-500.0,0.00016999,2]
[394554476,1763700640773,-500.0,0.00016999,2]
[394554477,1763700640782,-500.0,0.00016999,2]
[394554478,1763700640791,-500.0,0.00016999,2]
[394554479,1763700640801,-500.0,0.00016999,2]
[394554480,1763700640811,-500.0,0.00016999,2]
[394554481,1763700640820,-500.0,0.00016999,2]
[394554482,1763700640829,-500.0,0.00016999,2]
[394554483,1763700640840,-500.0,0.00016999,2]
[394554484,1763700640849,-281.79536213,0.00016999,2]
[394554485,1763700640859,-500.0,0.00016999,2]
[394554486,1763700640870,-500.0,0.00016999,2]
[394554487,1763700640880,-534.34453477,0.00016999,2]
[394554488,1763700640890,-513.80647036,0.00016999,2]
[394554489,1763700640899,-500.0,0.00016999,2]
[394554490,1763700640908,-500.0,0.00016999,2]
[394554491,1763700640918,-500.0,0.00016999,2]
[394554492,1763700640928,-500.0,0.00016999,2]
[394554493,1763700640937,-500.0,0.00016999,2]
[394554494,1763700640946,-500.0,0.00016999,2]
[394554495,1763700640956,-500.0,0.00016999,2]
[394554496,1763700640965,-500.0,0.00016999,2]
[394554497,1763700640974,-500.0,0.00016999,2]
[394554498,1763700640983,-500.0,0.00016999,2]
[394554499,1763700640992,-500.0,0.00016999,2]
[394554500,1763700641002,-300.0,0.00016999,2]
[394554501,1763700641011,-500.0,0.00016999,2]
[394554502,1763700641020,-500.0,0.00016999,2]
[394554503,1763700641030,-500.0,0.00016999,2]
[394554504,1763700641041,-500.0,0.00016999,2]
[394554505,1763700641060,-500.0,0.00016999,2]
[394554506,1763700641070,-410.72019503,0.00016999,2]
[394554507,1763700641081,-522.45581872,0.00016999,2]
[394554508,1763700641090,-85.29176049,0.00016999,2]
[394554509,1763700641126,-414.70823951,0.00016999,2]
[394554510,1763700641137,-500.0,0.00016999,2]
[394554511,1763700641147,-256.42545363,0.00016999,2]
[394554512,1763700641157,-500.0,0.00016999,2]
[394554513,1763700641167,-463.42270008,0.00016999,2]
[394554514,1763700641196,-138.41906735,0.00016999,2]
[394554515,1763700641206,-500.0,0.00016999,2]
[394554516,1763700641215,-500.0,0.00016999,2]
[394554517,1763700641224,-500.0,0.00016999,2]
[394554518,1763700641234,-500.0,0.00016999,2]
[394554519,1763700641243,-500.0,0.00016999,2]
[394554520,1763700641253,-500.0,0.00016999,2]
[394554521,1763700641262,-500.0,0.00016999,2]
[394554522,1763700641272,-314.72143615,0.00016999,2]
[394554523,1763700641284,-185.27856385,0.00016999,2]
[394554524,1763700641297,-500.0,0.00016999,2]
[394554525,1763700641307,-292.45863496,0.00016999,2]
[394554526,1763700641659,-207.54136504,0.00016999,2]
[394554527,1763700641669,-500.0,0.00016999,2]
[394554528,1763700641679,-500.0,0.00016999,2]
[394554529,1763700641688,-500.0,0.00016999,2]
[394554530,1763700641699,-500.0,0.00016999,2]
[394554531,1763700641709,-319.23447814,0.00016999,2]
[394554532,1763700641718,-500.0,0.00016999,2]
[394554533,1763700641727,-500.0,0.00016999,2]
[394554534,1763700641737,-214.43782331,0.00016999,2]
[394554535,1763700641746,-500.0,0.00016999,2]
[394554536,1763700641755,-500.0,0.00016999,2]
[394554537,1763700641765,-500.0,0.00016999,2]
[394554538,1763700641774,-500.0,0.00016999,2]
[394554539,1763700641785,-165.76764022,0.00016999,2]
[394554540,1763700641795,-500.0,0.00016999,2]
[394554541,1763700641805,-39066.2997032,0.00017,2]
[394554542,1763700641814,-111703.41299143,0.00017,2]
[394554545,1763700643499,-797.80149286,0.00017,2]
[394554546,1763700643768,-367.8674945,0.00017,2]
[394554550,1763700645936,-1909.69200645,0.00017,2]
[394554551,1763700645947,-262.500001,0.00017,2]
[394554552,1763700645959,-389.68644817,0.00017,2]
[394554554,1763700735365,600.0,0.00018,30]
[394554555,1763700735677,600.0,0.00018,30]
[394554556,1763700735745,500.0,0.00018,30]
[394554557,1763700736121,222.31021947,0.00018,30]
[394554558,1763700736212,500.0,0.00018,30]
[394554559,1763700736274,600.0,0.00018,30]
[394554560,1763700736400,500.0,0.00018,30]
[394554561,1763700736534,500.0,0.00018,30]
[394554562,1763700736598,600.0,0.00018,30]
[394554563,1763700736756,500.0,0.00018,30]
[394554564,1763700736836,500.0,0.00018,30]
[394554565,1763700736920,600.0,0.00018,30]
[394554566,1763700737032,800.0,0.00018,30]
[394554567,1763700737148,500.0,0.00018,30]
[394554568,1763700737226,600.0,0.00018,30]
[394554569,1763700737285,500.0,0.00018,30]
[394554570,1763700737379,800.0,0.00018,30]
[394554571,1763700737803,500.0,0.00018,30]
[394554572,1763700737890,600.0,0.00018,30]
[394554573,1763700737968,500.0,0.00018,30]
[394554574,1763700738085,800.0,0.00018,30]
[394554575,1763700738194,500.0,0.00017,30]
[394554576,1763700738248,600.0,0.00018,30]
[394554577,1763700738306,500.0,0.00018,30]
[394554578,1763700738525,800.0,0.00018,30]
[394554579,1763700738613,513.81482642,0.00017,30]
[394554580,1763700738667,500.0,0.00018,30]
[394554581,1763700738737,700.0,0.00018,30]
[394554582,1763700740193,800.0,0.00018,30]
[394554583,1763700740247,317.34536063,0.00018,30]
[394554584,1763700740319,500.0,0.00018,30]
[394554585,1763700740381,700.0,0.00018,30]
[394554586,1763700740437,500.0,0.00018,30]
[394554587,1763700740507,600.0,0.00018,30]
[394554588,1763700740571,800.0,0.00018,30]
[394554589,1763700740641,500.0,0.00018,30]
[394554590,1763700740716,700.0,0.00018,30]
[394554591,1763700740766,500.0,0.00017,30]
[394554592,1763700740815,734.95992592,0.00018,30]
[394554593,1763700740879,600.0,0.00018,30]
[394554594,1763700740947,800.0,0.00018,30]
[394554595,1763700741015,500.0,0.00018,30]
[394554596,1763700741080,700.0,0.00018,30]
[394554597,1763700741408,600.0,0.00018,30]
[394554598,1763700741467,800.0,0.00018,30]
[394554599,1763700741523,500.0,0.00018,30]
[394554600,1763700741597,700.0,0.00018,30]
[394554601,1763700741671,800.0,0.00018,30]
[394554602,1763700741725,600.0,0.00018,30]
[394554603,1763700741785,500.0,0.00018,30]
[394554604,1763700741856,700.0,0.00018,30]
[394554605,1763700741928,600.0,0.00018,30]
[394554606,1763700741979,800.0,0.00018,30]
[394554607,1763700742057,500.0,0.00018,30]
[394554608,1763700742181,700.0,0.00018,30]
[394554609,1763700742235,626.9505919,0.00018,30]
[394554610,1763700742292,800.0,0.00018,30]
[394554611,1763700742353,600.0,0.00017,30]
[394554612,1763700742589,500.0,0.00018,30]
[394554613,1763700742658,700.0,0.00018,30]
[394554614,1763700742723,800.0,0.00018,30]
[394554615,1763700742840,600.0,0.00017,30]
[394554616,1763700742924,500.0,0.00017,30]
[394554617,1763700742991,700.0,0.00018,30]
[394554618,1763700743143,800.0,0.00018,30]
[394554619,1763700743215,600.0,0.00017,30]
[394554620,1763700743271,500.0,0.00017,30]
[394554621,1763700743326,700.0,0.00018,30]
[394554622,1763700743436,800.0,0.00018,30]
[394554623,1763700743499,600.0,0.00017,30]
[394554624,1763700743551,500.0,0.00017,30]
[394554625,1763700743616,700.0,0.00018,30]
[394554626,1763700743833,800.0,0.00018,30]
[394554627,1763700744114,600.0,0.00017,30]
[394554628,1763700744166,500.0,0.00017,30]
[394554629,1763700744222,700.0,0.00018,30]
[394554630,1763700744272,355.54457691,0.00018,30]
[394554631,1763700744355,800.0,0.00017,30]
[394554632,1763700744417,600.0,0.00017,30]
[394554633,1763700744478,500.0,0.00018,30]
[394554634,1763700744535,500.0,0.00017,30]
[394554635,1763700744662,700.0,0.00018,30]
[394554636,1763700744828,600.0,0.00017,30]
[394554637,1763700744896,800.0,0.00017,30]
[394554638,1763700744950,500.0,0.00017,30]
[394554639,1763700745003,500.0,0.00018,30]
[394554640,1763700745066,700.0,0.00017,30]
[394554641,1763700745225,600.0,0.00017,30]
[394554642,1763700745501,800.0,0.00017,30]
[394554643,1763700745553,500.0,0.00017,30]
[394554644,1763700745608,500.0,0.00018,30]
[394554645,1763700745663,700.0,0.00017,30]
[394554646,1763700745894,600.0,0.00017,30]
[394554647,1763700745946,800.0,0.00017,30]
[394554648,1763700746004,500.0,0.00017,30]
[394554649,1763700746055,700.0,0.00017,30]
[394554650,1763700746111,500.0,0.00018,30]
[394554651,1763700746168,600.0,0.00017,30]
[394554652,1763700746238,800.0,0.00017,30]
[394554653,1763700746389,500.0,0.00017,30]
[394554654,1763700746449,500.0,0.00018,30]
[394554655,1763700746589,600.0,0.00017,30]
[394554656,1763700746805,500.0,0.00018,30]
[394554657,1763700746862,800.0,0.00017,30]
[394554658,1763700746946,500.0,0.00017,30]
[394554659,1763700746997,500.0,0.00018,30]
[394554660,1763700747087,1044.58822903,0.00017,30]
[394554661,1763700747147,500.0,0.00018,30]
[394554662,1763700747199,500.0,0.00017,30]
[394554663,1763700747288,800.0,0.00017,30]
[394554664,1763700747342,500.0,0.00017,30]
[394554665,1763700747397,500.0,0.00018,30]
[394554666,1763700747494,800.0,0.00017,30]
[394554667,1763700747549,965.32613506,0.00017,30]
[394554668,1763700747600,500.0,0.00018,30]
[394554669,1763700747732,800.0,0.00017,30]
[394554670,1763700747812,500.0,0.00018,30]
[394554671,1763700747967,800.0,0.00017,30]
[394554672,1763700748265,500.0,0.00018,30]
[394554673,1763700748334,700.0,0.00017,30]
[394554674,1763700748403,800.0,0.00017,30]
[394554675,1763700748480,500.0,0.00018,30]
[394554676,1763700748537,700.0,0.00017,30]
[394554677,1763700748636,800.0,0.00017,30]
[394554678,1763700748800,500.0,0.00017,30]
[394554679,1763700748864,500.0,0.00018,30]
[394554680,1763700748923,700.0,0.00017,30]
[394554681,1763700749004,800.0,0.00017,30]
[394554682,1763700749064,500.0,0.00017,30]
[394554683,1763700749123,499.4701768,0.00018,30]
[394554684,1763700749175,500.0,0.00017,30]
[394554685,1763700749228,700.0,0.00017,30]
[394554686,1763700749296,1217.27717422,0.00017,30]
[394554687,1763700749554,500.0,0.00017,30]
[394554688,1763700749697,700.0,0.00017,30]
[394554689,1763700749830,500.0,0.00017,30]
[394554690,1763700749888,700.0,0.00017,30]
[394554691,1763700750018,500.0,0.00017,30]
[394554692,1763700750087,700.0,0.00017,30]
[394554693,1763700750842,500.0,0.00017,30]
[394554694,1763700750895,700.0,0.00017,30]
[394554695,1763700751072,700.0,0.00017,30]
[394554696,1763700751366,500.0,0.00017,30]
[394554697,1763700751459,500.0,0.00017,30]
[394554698,1763700751515,988.5907411,0.00017,30]
[394554699,1763700751587,500.0,0.00017,30]
[394554700,1763700751836,500.0,0.00017,30]
[394554701,1763700751907,941.20982707,0.00017,30]
[394554702,1763700752172,500.0,0.00018,30]
[394554709,1763700867210,1005.94791649,0.00018,30]
[394554710,1763701041370,279.93038054,0.00018,30]
[394554711,1763701044811,500.0,0.00018,30]
[394554712,1763701045153,504.019408,0.00017,30]
[394554713,1763701045720,1600.0,0.00018,30]
[394554714,1763701046086,1600.0,0.00018,30]
[394554715,1763701046507,1600.0,0.00018,30]
[394554716,1763701046651,476.18654226,0.00018,30]
[394554717,1763701047072,1600.0,0.00018,30]
[394554718,1763701047146,500.0,0.00018,30]
[394554719,1763701047198,500.0,0.00018,30]
[394554720,1763701047268,166.07329781,0.00018,30]
[394554721,1763701047346,500.0,0.00018,30]
[394554722,1763701047428,500.0,0.00018,30]
[394554723,1763701047483,1600.0,0.00018,30]
[394554724,1763701047537,563.40709177,0.00018,30]
[394554725,1763701047603,500.0,0.00018,30]
[394554726,1763701047657,500.0,0.00018,30]
[394554727,1763701047711,500.0,0.00018,30]
[394554728,1763701047768,1600.0,0.00018,30]
[394554729,1763701047943,500.0,0.00018,30]
[394554730,1763701047996,500.0,0.00018,30]
[394554731,1763701048135,500.0,0.00018,30]
[394554732,1763701048401,1600.0,0.00018,30]
[394554733,1763701048511,500.0,0.00018,30]
[394554734,1763701048567,500.0,0.00018,30]
[394554735,1763701048632,1600.0,0.00018,30]
[394554736,1763701048685,500.0,0.00018,30]
[394554737,1763701048745,500.0,0.00018,30]
[394554738,1763701048803,500.0,0.00018,30]
[394554739,1763701048863,500.0,0.00018,30]
[394554740,1763701048976,1600.0,0.00018,30]
[394554741,1763701049038,500.0,0.00018,30]
[394554742,1763701049089,500.0,0.00018,30]
[394554743,1763701049144,500.0,0.00018,30]
[394554744,1763701049197,500.0,0.00018,30]
[394554745,1763701049350,1600.0,0.00018,30]
[394554746,1763701049455,500.0,0.00018,30]
[394554747,1763701049556,500.0,0.00018,30]
[394554748,1763701049655,500.0,0.00018,30]
[394554749,1763701049761,219.84746369,0.00018,30]